Cogmind - Beta 16 --- EXPLORER MODE // 2025.11.12 @ 13:45:18 Player: K.K.Y. Result: Destroyed by 4B-0T5(R) with Subdweller Machine Gun Performance ------------- Evolutions (0) 0 Regions Visited (2) 400 Robots Destroyed (27) 135 Value Destroyed (623) 623 Prototype IDs (13) 260 Alien Tech Used (0) 0 Bonus (0) 0 TOTAL SCORE: 1418 Bonus ------- None Cogmind --------- Core Integrity 0/250 Matter 165/300 Energy 27/100 System Corruption 0% Temperature Cool (6) Movement Rolling (180) Ox6 Location -10/Subcaves Parts ------- > --- POWER (1) -------- (None) > --- PROPULSION (3) --- Armored Wheel Armored Wheel > --- UTILITY (2) ------ Cargo Storage Unit > --- WEAPON (2) ------- Heavy Riot Gun Heavy Battle Rifle > --- INVENTORY (30) --- Terrain Scan Processor Seismic Detector Subdweller Shrapnel Launcher Peak State ------------ > --- POWER ------------ (None) > --- PROPULSION ------- Wheel Armored Wheel Armored Wheel > --- UTILITY ---------- Large Storage Unit Tower Shield > --- WEAPON ----------- Improved EM Shotgun Improved EM Shotgun Heavy Riot Gun Heavy Battle Rifle > --- INVENTORY -------- Wheel Cargo Storage Unit Structural Scanner Machine Analyzer Signal Interpreter Terrain Scanner Terrain Scan Processor Seismic Detector Tractor Beam Improved EM Shotgun Battle Cannon Subdweller Shrapnel Launcher [Rating: 42] Favorites ----------- Power Ion Engine Engine Ion Engine Propulsion Armored Wheel Leg Aluminum Leg Wheel Armored Wheel Utility Large Storage Unit Device Terrain Scanner Storage Large Storage Unit Processor Targeting Computer Protection Tower Shield Weapon Heavy Battle Rifle Energy Gun Improved EM Shotgun Ballistic Gun Heavy Battle Rifle Launcher Subdweller Shrapnel Launcher Slashing Weapon Mining Claw Build | -11 -10 -10 ------- Run | Yrd Mat Sub Slots Evolved 1 | . 1 . Power . | . . . Propulsion 1 | . 1 . Utility . | . . . Weapon . | . . . Parts Attached 27 | 8 9 10 Power 3 | 1 2 . Engine 3 | 1 2 . Core . | . . . Reactor . | . . . Propulsion 9 | 2 4 3 Treads . | . . . Leg 3 | 2 1 . Wheel 6 | . 3 3 Hover . | . . . Flight . | . . . Utility 6 | 3 1 2 Device 1 | 1 . . Storage 3 | 1 1 1 Processor 1 | 1 . . Hackware . | . . . Protection 1 | . . 1 Artifact . | . . . Weapon 9 | 2 2 5 Energy Gun 5 | 1 1 3 Energy Cannon . | . . . Ballistic Gun 2 | 1 . 1 Ballistic Cannon . | . . . Launcher 1 | . . 1 Special Weapon . | . . . Impact Weapon . | . . . Slashing Weapon 1 | . 1 . Piercing Weapon . | . . . Special Melee Weapon . | . . . Unidentified Prototypes 1 | . 1 . Parts Lost 9 | . 1 8 Power 2 | . 1 1 Propulsion 3 | . . 3 Utility 1 | . . 1 Weapon 3 | . . 3 Highest Loss Streak 4 | . 1 4 To Critical Strikes . | . . . Average Backups 10 | 1 5 12 Power . | . . . Propulsion . | . . . Utility 6 | . 3 7 Weapon 3 | . 1 4 Tool/Special . | . . . Unused Backups 10 | . . 10 Power . | . . . Propulsion 1 | . . 1 Utility 7 | . . 7 Weapon 2 | . . 2 Tool/Special . | . . . Average Slot Usage (%) 86 | . 97 79 Engine 4 | . 11 1 Leg 1 | . 5 . Wheel 31 | . 29 31 Device 9 | . 12 8 Storage 10 | . 12 10 Protection 1 | . . 2 Energy Gun 5 | . 6 4 Ballistic Gun 9 | . 9 9 Launcher 4 | . . 7 Slashing Weapon 4 | . 7 2 Peak Build Rating 42 | 7 15 42 Average Rating 17 | 3 11 22 On Entrance 7 | . 7 15 Avg Prop Armor Cover (%) . | . . . Naked Turns . | . . . Heaviest Build 148 | 20 31 148 Greatest Support 44 | 20 36 44 Greatest Overweight (x) 6 | . 6 4 Average Overweight (x) . | . . . Largest Inventory Capacity 30 | 10 15 30 Average Capacity 14 | 7 12 14 Most Carried 15 | 5 15 15 Average Carried 10 | 2 5 13 Final Capacity 30 | 10 15 30 Final Carried 15 | . 15 3 Class Distribution -------------------- 82% | Hacker-Mutant 17% | Hacker-Gunner Dominant Class ---------------- Hacker-Mutant | -10/Materials Hacker-Mutant | -10/Subcaves Resources | -11 -10 -10 ----------- Run | Yrd Mat Sub Matter Collected 696 | 179 310 207 Remotely . | . . . Salvage Created 914 | . 690 224 Parts 59 | . 42 17 Haulers Intercepted 1 | . 1 . Recyclers Shooed . | . . . Parts Field Recycled . | . . . Retrieved Matter . | . . . Parts Self-Destructed . | . . . Prevented . | . . . Parts Restored . | . . . Kills | -11 -10 -10 ------- Run | Yrd Mat Sub Combat Hostiles Destroyed 19 | . 13 6 Guns 16 | . 11 5 AOE 1 | . . 1 Classes Destroyed 10 | . 8 2 Builder 1 | . 1 . Hauler 1 | . 1 . Recycler 1 | . 1 . Mechanic 1 | . 1 . Turret 1 | . . 1 Watcher 3 | . 3 . Swarmer 8 | . 6 2 Grunt 4 | . 4 . Artisan 1 | . . 1 Subdweller 7 | . 3 4 Best Kill Streak 4 | . 3 4 Combat Bots Only 3 | . 3 3 Max Kills in Single Turn 1 | . 1 1 Gunslinging . | . . . Exploded 1 | . . 1 Melee . | . . . Uniques/NPCs Destroyed . | . . . Combat | -11 -10 -10 -------- Run | Yrd Mat Sub Hostile Shots Fired 178 | . 65 113 Missed 58 | . 22 36 Hits 120 | . 43 77 Projectile 120 | . 43 77 AOE 8 | . . 8 Critical Strikes 2 | . . 2 Damage Taken 1360 | . 514 846 Core 252 | . 89 163 Absorbed by Shields . | . . . Ignored by Resistances 825 | . 315 510 Core Remaining (%) 100 | 100 . . Volleys Fired 99 | . 58 41 Largest 2 | . 2 2 Hottest 93 | . 60 93 Shots Fired 130 | . 82 48 Gun 123 | . 82 41 Cannon . | . . . Launcher 7 | . . 7 Special . | . . . Kinetic 79 | . 38 41 Thermal . | . . . Explosive . | . . . Electromagnetic 51 | . 44 7 Robot Hit Streak 21 | . 18 21 Robot Miss Streak 2 | . 2 1 Penetration Max . | . . . Secondary Targets . | . . . Shots Hit Robots 96 | . 66 30 Core Hits 42 | . 29 13 Critical Kills . | . . . Critical Parts Destroyed . | . . . Critical Strikes 1 | . . 1 Destroy 1 | . . 1 Melee Attacks 5 | . 3 2 Impact . | . . . Slashing 5 | . 3 2 Piercing . | . . . Sneak Attacks 2 | . 2 . Combat Hostiles . | . . . Follow-up Attacks . | . . . Damage Inflicted 1612 | . 1048 564 Guns 1436 | . 955 481 Cannons . | . . . Explosions 83 | . . 83 Melee 93 | . 93 . Ramming . | . . . Kinetic 855 | . 345 510 Thermal . | . . . Explosive . | . . . Electromagnetic 664 | . 610 54 Impact . | . . . Slashing 93 | . 93 . Piercing . | . . . Highest Corruption . | . . . Average Corruption . | . . . Corruption Purged . | . . . Corruption Blocked . | . . . Overload Shots . | . . . Overflow Damage 7 | . 7 . Projectiles . | . . . Explosions . | . . . Melee 7 | . 7 . Knockbacks . | . . . Impact . | . . . Kinetic . | . . . Secondary . | . . . Self-Inflicted Damage 71 | . 25 46 Shots 4 | . 1 3 Rammed . | . . . Targets Rammed . | . . . Kicked . | . . . Crushed . | . . . Highest Temperature 51 | . 51 . Average Temperature 23 | . 23 . Received Heat Transfer 384 | . 180 204 Siege Activations . | . . . Martial Activations . | . . . Shielding Activations . | . . . Robots Disrupted . | . . . Combat Hostiles . | . . . Robots Corrupted 2 | . 2 . Combat Hostiles 2 | . 2 . Parts Fried 3 | . 3 . Impact Corruptions . | . . . Robots Melted . | . . . Combat Hostiles . | . . . Parts Melted 1 | . 1 . Heat Transferred . | . . . Parts Sabotaged . | . . . Parts Stolen . | . . . Parts Stripped . | . . . Power Chain Reactions 1 | . 1 . Alert | -11 -10 -10 ------- Run | Yrd Mat Sub Maximum Alert Level . | . . . Low Security (%) 100 | 100 100 . Level 1 . | . . . Level 2 . | . . . Level 3 . | . . . Level 4 . | . . . Level 5 . | . . . High Security . | . . . Max Security . | . . . Peak Influence 65 | . 65 . Initial . | . . . Average 12 | . 13 . Influence Increases 373 | . 313 60 Destroy 0b10 Robot/C 260 | . 200 60 Destroy 0b10 Robot/NC 35 | . 35 . Destroy Leader 48 | . 48 . Successful Hack 6 | . 6 . Disable Machine 4 | . 4 . Destroy Structure 5 | . 5 . Lose Combat Pursuer 15 | . 15 . Influence Decreases 373 | . 308 65 Entered New Map 4 | . . 4 Time Decay 334 | . 298 36 Lost Part 35 | . 10 25 Squads Dispatched . | . . . Investigation . | . . . Extermination . | . . . Reinforcement . | . . . Assault . | . . . Garrison . | . . . Intercept . | . . . Searches Triggered . | . . . Construction Impeded . | . . . Haulers Reinforced . | . . . Active Scanning Responses . | . . . Cargo Convoy Interrupts . | . . . Stealth | -11 -10 -10 --------- Run | Yrd Mat Sub Distress Signals 1 | . 1 . Communications Jammed . | . . . Distress Signals . | . . . Times Spotted 35 | . 20 15 Peak Tracking Total 8 | . 3 8 Tactical Retreats 1 | . 1 . Traps | -11 -10 -10 ------- Run | Yrd Mat Sub Traps Triggered 2 | . 2 . Indirectly . | . . . Trap Hack Attempts . | . . . Triggered . | . . . Disarmed . | . . . Reprogrammed . | . . . Reused . | . . . Traps Extracted . | . . . Installed . | . . . Triggered . | . . . Machines | -11 -10 -10 ---------- Run | Yrd Mat Sub Machines Disabled 2 | . 1 1 Max in Single Turn 1 | . 1 1 Machines Repaired . | . . . Machines Dismantled . | . . . Machines Sabotaged . | . . . Overloaded Fab Kills . | . . . Hacking | -11 -10 -10 --------- Run | Yrd Mat Sub Machines Accessed 3 | . 1 2 Terminals 1 | . 1 . Fabricators . | . . . Repair Stations . | . . . Recycling Units . | . . . Scanalyzers . | . . . Garrison Access . | . . . Total Hacks 15 | . 3 12 Successful 15 | . 3 12 Failed . | . . . Catastrophic . | . . . Database Lockouts . | . . . Manual 2 | . 2 . Terminals 3 | . 3 . Fabricators . | . . . Repair Stations . | . . . Recycling Units . | . . . Scanalyzers . | . . . Garrison Access . | . . . Terminal Hacks 15 | . 3 12 Record 11 | . . 11 Level Access Points 1 | . 1 . Branch Access Points 1 | . 1 . Zone Layout 1 | . 1 . Proto ID Catalog 1 | . . 1 Fabricator Hacks . | . . . Repair Station Hacks . | . . . Recycling Unit Hacks . | . . . Scanalyzer . | . . . Garrison Access Hacks . | . . . Unauthorized Hacks . | . . . Terminals . | . . . Fabricators . | . . . Repair Stations . | . . . Recycling Units . | . . . Scanalyzers . | . . . Garrison Access . | . . . Data Cores Recovered . | . . . Used . | . . . Hacking Detections 1 | . 1 . Full Trace Events 1 | . 1 . Feedback Events . | . . . Feedback Blocked . | . . . Robot Schematics Acquired . | . . . Robots Built . | . . . Authchips . | . . . Time . | . . . Total Robot Build Rating . | . . . Part Schematics Acquired . | . . . Parts Built . | . . . Authchips . | . . . Time . | . . . Total Part Build Rating . | . . . Part Studies Acquired . | . . . Parts Repaired . | . . . Time . | . . . Parts Recycled . | . . . Recycled Matter . | . . . Retrieved Matter . | . . . Retrieved Components . | . . . Parts Scanalyzed . | . . . Part Schematics Acquired . | . . . Parts Damaged . | . . . Bothacking | -11 -10 -10 ------------ Run | Yrd Mat Sub Used RIF Installer . | . . . Robots Hacked . | . . . Non-combat . | . . . Combat . | . . . Robot Hacks Applied . | . . . Relay Couplers Released . | . . . Fabnet Peak Effective % . | . . . Robots Rewired . | . . . Allies Hacked . | . . . Hacks Repelled . | . . . Allies | -11 -10 -10 -------- Run | Yrd Mat Sub Total Allies . | . . . Largest Group . | . . . Highest-Rated Group . | . . . Highest-Rated Ally . | . . . Total Orders . | . . . Ally Attacks . | . . . Total Damage . | . . . Kills . | . . . Allies Corrupted . | . . . Allies Melted . | . . . Intel | -11 -10 -10 ------- Run | Yrd Mat Sub Active Infowar (turns) 1675 | 19 715 941 Terrain 1675 | 19 715 941 Robot Analysis Total . | . . . Derelict Logs Recovered 1 | . . 1 Drone Launches . | . . . Drone Recoveries . | . . . Exploration | -11 -10 -10 ------------- Run | Yrd Mat Sub Turns Passed 2068 | 53 715 1300 Spaces Moved 1787 | 36 549 1202 Core 20 | 18 2 . Treads . | . . . Legs 75 | 18 57 . Wheels 1692 | . 490 1202 Hover . | . . . Flight . | . . . Fastest Speed 50 | 50 90 86 Average Speed 95 | 85 94 97 Slowest Speed 350 | 120 350 146 Overloaded Moves . | . . . Propulsion Burnouts . | . . . Robots Hopped . | . . . Potential Cave-ins . | . . . Cave-ins Triggered . | . . . Exploration Rate (%) 54 | 4 89 70 Regions Visited 2 Branch Regions 1 Pre-discovered Areas 2 | . . 2 Known Exits Taken 2 | 1 1 . Unknown Exits Taken . | . . . Scrap Searched 10 | . . 10 Spaces Dug . | . . . Terrain Destroyed 117 | . 5 112 Melee . | . . . Projectile . | . . . AOE 117 | . 5 112 Terrain Rammed . | . . . Walls Destroyed . | . . . Machines Disabled . | . . . Actions | -11 -10 -10 --------- Run | Yrd Mat Sub Total 2005 | 58 662 1285 Wait 27 | 8 12 7 Move 1785 | 35 548 1202 Hop . | . . . Pick Up 41 | 6 22 13 Fast Attach 7 | 2 . 5 Attach 20 | 6 7 7 Detach 7 | 1 4 2 Swap 4 | . 3 1 Drop 10 | . 5 5 Fire 99 | . 58 41 Melee 5 | . 3 2 Ram . | . . . Kick . | . . . Crush . | . . . Escape Stasis . | . . . Rewire . | . . . Trap . | . . . Miscellaneous . | . . . Route ------- -11/Scrapyard -10/Materials (discovered 5 exits: *Mat x3 / *Min / *Sub) -10/Subcaves (discovered 3 exits: *Mat x2 / *Rec) History --------- Turn | Location | Event 5 | -11/Scrapyard | Identified exit to Materials 5 | -11/Scrapyard | Discovered exit to Materials (range 15) 54 | -11/Scrapyard | Entered Materials 54 | -10/Materials | Evolved 1 slot: Propulsion x1 255 | -10/Materials | Identified exit to Materials 255 | -10/Materials | Discovered exit to Materials (range 5) 301 | -10/Materials | Build established: Hacker-Mutant 332 | -10/Materials | Identified exit to Mines 654 | -10/Materials | Derelicts attacked the area 747 | -10/Materials | Identified exit to Subcaves 747 | -10/Materials | Discovered exit to Subcaves (range 6) 769 | -10/Materials | Entered Subcaves 788 | -10/Subcaves | Visited Clippyterm 790 | -10/Subcaves | Learned location of Deep Caves (-6) 838 | -10/Subcaves | Identified exit to Recycling 838 | -10/Subcaves | Discovered exit to Recycling (range 14) 849 | -10/Subcaves | Ambushed by angry Subdweller bent on revenge 854 | -10/Subcaves | Core integrity fell below 50% 907 | -10/Subcaves | Lost 4 parts (1p2n1w) 989 | -10/Subcaves | Learned location of Zion (-6) 1057 | -10/Subcaves | Disturbed a concealed Subdweller 1115 | -10/Subcaves | Identified exit to Materials 1115 | -10/Subcaves | Discovered exit to Materials (range 9) 1302 | -10/Subcaves | Discovered exit to Materials (range 15) 1317 | -10/Subcaves | Shifting Twisted Machinery released Sub. Monowheel 1644 | -10/Subcaves | Visited 4L-MR0's lab 1658 | -10/Subcaves | Found Tower Shield 1659 | -10/Subcaves | Attached Tower Shield, gained temporary slots: Power, Propulsion x2, Utility x2, Weapon x2 1952 | -10/Subcaves | A swath of the cavern ceiling suddenly collapsed 2016 | -10/Subcaves | Build established: Hacker-Gunner 2053 | -10/Subcaves | Ambushed by Subdweller buried in earth 2053 | -10/Subcaves | Ambushed by Subdweller buried in earth 2057 | -10/Subcaves | Ambushed by Subdweller buried in earth 2057 | -10/Subcaves | Ambushed by Subdweller buried in earth 2057 | -10/Subcaves | Ambushed by Subdweller buried in earth 2058 | -10/Subcaves | Core integrity fell below 20% 2069 | -10/Subcaves | Destroyed by 4B-0T5(R) with Subdweller Machine Gun Last Messages --------------- 01867_ Acquired 9 matter. A swath of the cavern ceiling suddenly collapses. 01974_ Sub. Shrapnel Launcher shoots sparks and powers down. 02053_ CE-SW6(z): "She is not going to be happy we haven't found any suitable candidates yet." 02054_ I0-MUC(R): "ARGHSUB!" 02054_ UM-PYE(R): "NAT20!" 02058_ O2-L26(R): "GOODGOOD!" 02058_ 4B-0T5(R): "ARGHSUB!" 02058_ TM-FWR(R): "ARGHSUB!" 02061_ 45-P7V(R) destroyed. 02062_ Critical hit (Destroy). 02064_ Tower Shield destroyed. 02064_ Temporary Power slot lost. 02064_ Temporary Propulsion slot lost. 02064_ Temporary Utility slot lost. 02064_ Temporary Weapon slot lost. 02069_ Wheel destroyed. Map ----- +----------------------------------------------------+ | ?????????????????????????????????????????????????? | | ?????????????????????????????????????????????????? | | ?????????????????????????????????????????????????? | | ?????????????????????????????????????????????????? | | ?????????????????????????????????????????????????? | | ?????????????????????????????????????????????????? | | ?????????????????????????????????????????????????? | | ?????????????????????????????????????????????????? | | ?????????????????????????????????????????????????? | | ?????????????????????????????????????????????????? | | ?????????????????????????????????????????????????? | | ?????????????????????????????? ?????????????????? | | ????????????????????????????? #????????????????? | | ????????????????????????????? #####????????????? | | ??????????????????##????????? ????????????? | | ????????????????### ###?????? ?????????????? | | ????????????????? ??????# #?????????????? | | ????????????????? ?????# #?????????????? | | ??????????????????# ????## #?????????????? | | ?????????????????## R ?#### #??????????????? | | ?????????????????# ## ##?????????????? | | ?????????????????# ##????????????? | | ?????????????????# ##???????????? | | ??????????????????# ! ;# #???????? | | ??????????????????? R%& [ R #???????? | | ???????????????????????# @ !=] #???????? | | ???????????????????????# [[!! #???????? | | ???????????????????????# !!! RR #???????? | | ???????????????????????# RR #???????? | | ???????????????????????# #???????? | | ???????????????????????# ##???????? | | ???????????????????????#"" ####????????? | | ?????????????????????# "## ###???????????? | | ????????????????????? "##### #?????????????? | | ????????????????????? ""#???# ##????????????? | | ????????????????????# ""#" ## ##???????????? | | ????????????????????## ??""""" #???????????? | | ?????????????????????#???"""""" ##???????????? | | ?????????????????????????""####" ##????????????? | | ??????????????????????????????#" #?????????????? | | ??????????????????????????????#"" #?????????????? | | ??????????????????????????????# ##?????????????? | | ??????????????????????????????# #??????????????? | | ??????????????????????????????#" "#??????????????? | | ??????????????????????????????## #??????????????? | | ??????????????????????????????# #??????????????? | | ??????????????????????????????## #??????????????? | | ???????????????????????????????# ##?????????????? | | ????????????????????????#?????## ##????????????? | | ????????????????????????# ????# #????????????? | +----------------------------------------------------+ Best States ------------- Heat Dissipation 25 Energy Generation 10 Energy Capacity 250 Matter Stores 300 Matter Capacity 300 Sight Range 16 Terrain Scan Range 14 Terrain Scan Density 10 Armor Coverage 2000 Resistance: KI 35 Resistance: TH 35 Resistance: EX 35 Resistance: EM 35 Resistance: I 35 Resistance: S 35 Resistance: P 35 Evasion (%) 55 Targeting Accuracy 5 Offensive Hacking 20 Item Schematics ----------------- None Robot Schematics ------------------ None Fabricated ------------ Nothing Repaired ---------- Nothing Studied --------- None Alien Tech Used ----------------- None Achievements -------------- None Challenges ------------ None Game ------ Seed FrostEncryptedBeam Manual? 0 Play Time 00:15:36 Cumulative 79.3 hours Start 2025.11.12 @ 13:29:51 End 2025.11.12 @ 13:45:18 Sessions 1 Manual Loads 0 Difficulty Explorer Special Mode None Game No. 71 Rogue 0 Adventurer 0 Explorer 71 Win Type - Total 0 Types 0/0/0/0/0/0/0/0/0/0 Lore% 52 Gallery% 54 Achievement% 42 Wizard Run 0 Options --------- Layout 1 ASCII 0 Keyboard 0 Movement Mouse Keybinds 0 Fullscreen 1 Font 24/Smallcaps Map View 50x35 Zoom Use 0% Tactical HUD 1 Map Filters NONE Filters NONE Steam 1 RUN: e50616ee-3134-4973-9aae-c99cbf2c4ded